fUSD/lending_fUSD_20240725
["ID","MTS","AMOUNT","RATE_DAILY","PERIOD"]
[333136063,1721885441465,-1142.86,0.00010958,2]
[333136065,1721885441476,-819.64,0.00010958,2]
[333136067,1721885441486,-500.0,0.00010958,2]
[333136069,1721885441495,-819.64,0.00010958,2]
[333136071,1721885441505,-500.0,0.00010958,2]
[333136072,1721885441514,-473.67692341,0.00010958,2]
[333136074,1721885441523,-500.0,0.00010958,2]
[333136076,1721885441532,-500.0,0.00010958,2]
[333136078,1721885441541,-500.0,0.00010958,2]
[333136080,1721885441551,-500.0,0.00010958,2]
[333136082,1721885441561,-500.0,0.00010958,2]
[333136084,1721885441571,-500.0,0.00010958,2]
[333136086,1721885441581,-500.0,0.00010958,2]
[333136088,1721885441590,-1625.85,0.00010958,2]
[333136089,1721885441599,-500.0,0.00010958,2]
[333136092,1721885441610,-1625.85,0.00010958,2]
[333136093,1721885441619,-500.0,0.00010958,2]
[333136095,1721885441629,-500.0,0.00010958,2]
[333136097,1721885441639,-500.0,0.00010958,2]
[333136099,1721885441648,-500.0,0.00010958,2]
[333136101,1721885441658,-500.0,0.00010958,2]
[333136103,1721885441668,-504.37030225,0.00010958,2]
[333136105,1721885441678,-979.54,0.00010958,2]
[333136107,1721885441687,-1583.32,0.00010958,2]
[333136109,1721885441697,-979.54,0.00010958,2]
[333136111,1721885441707,-1583.32,0.00010958,2]
[333136113,1721885441716,-500.0,0.00010958,2]
[333136115,1721885441726,-500.0,0.00010958,2]
[333136117,1721885441736,-500.0,0.00010958,2]
[333136119,1721885441745,-1317.73,0.00010958,2]
[333136121,1721885441755,-500.0,0.00010958,2]
[333136123,1721885441764,-1317.73,0.00010958,2]
[333136125,1721885441774,-500.0,0.00010958,2]
[333136127,1721885441783,-500.0,0.00010958,2]
[333136129,1721885441793,-500.0,0.00010958,2]
[333136131,1721885441802,-500.0,0.00010958,2]
[333136133,1721885441812,-500.0,0.00010958,2]
[333136135,1721885441821,-500.0,0.00010958,2]
[333136137,1721885441831,-924.25,0.00010958,2]
[333136139,1721885441841,-924.25,0.00010958,2]
[333136141,1721885441851,-500.0,0.00010958,2]
[333136143,1721885441861,-500.0,0.00010958,2]
[333136145,1721885441871,-500.0,0.00010958,2]
[333136147,1721885441881,-500.0,0.00010958,2]
[333136148,1721885441890,-1188.5,0.00010958,2]
[333136149,1721885441899,-1188.5,0.00010958,2]
[333136150,1721885441909,-500.0,0.00010958,2]
[333136151,1721885441918,-453.0,0.00010958,2]
[333136152,1721885441927,-500.0,0.00010958,2]
[333136153,1721885441937,-3361.54,0.00010958,2]
[333136154,1721885441946,-500.0,0.00010958,2]
[333136155,1721885441956,-3361.54,0.00010958,2]
[333136156,1721885441965,-3394.4,0.00010958,2]
[333136157,1721885441975,-3394.4,0.00010958,2]
[333136158,1721885441984,-502.11,0.00010958,2]
[333136159,1721885441994,-502.11,0.00010958,2]
[333136160,1721885442003,-2587.03,0.00010958,2]
[333136161,1721885442012,-2587.03,0.00010958,2]
[333136162,1721885442021,-500.0,0.00010958,2]
[333136164,1721885442032,-500.0,0.00010958,2]
[333136166,1721885442042,-3159.19,0.00010958,2]
[333136168,1721885442051,-3159.19,0.00010958,2]
[333136170,1721885442061,-500.0,0.00010958,2]
[333136172,1721885442070,-500.0,0.00010958,2]
[333136174,1721885442079,-1196.49,0.00010958,2]
[333136176,1721885442089,-1196.49,0.00010958,2]
[333136178,1721885442098,-500.0,0.00010958,2]
[333136180,1721885442108,-502.68094126,0.00010958,2]
[333136182,1721885442118,-500.0,0.00010958,2]
[333136184,1721885442128,-500.0,0.00010958,2]
[333136186,1721885442138,-500.0,0.00010958,2]
[333136188,1721885442151,-500.0,0.00010958,2]
[333136190,1721885442160,-1496.03,0.00010958,2]
[333136191,1721885442170,-1496.03,0.00010958,2]
[333136193,1721885442179,-500.0,0.00010958,2]
[333136195,1721885442189,-500.0,0.00010958,2]
[333136197,1721885442198,-500.0,0.00010958,2]
[333136199,1721885442208,-500.0,0.00010958,2]
[333136201,1721885442218,-1166.32,0.00010958,2]
[333136203,1721885442229,-1166.32,0.00010958,2]
[333136205,1721885442238,-2120.38,0.00010958,2]
[333136207,1721885442248,-2120.38,0.00010958,2]
[333136209,1721885442258,-2140.44,0.00010958,2]
[333136211,1721885442267,-2140.44,0.00010958,2]
[333136213,1721885442276,-2521.29,0.00010958,2]
[333136215,1721885442286,-2521.29,0.00010958,2]
[333136216,1721885442296,-500.0,0.00010958,2]
[333136218,1721885442306,-500.0,0.00010958,2]
[333136220,1721885442316,-1737.09,0.00010958,2]
[333136222,1721885442326,-1737.09,0.00010958,2]
[333136224,1721885442336,-500.0,0.00010958,2]
[333136226,1721885442345,-500.0,0.00010958,2]
[333136228,1721885442355,-500.0,0.00010958,2]
[333136230,1721885442364,-500.0,0.00010958,2]
[333136232,1721885442373,-500.0,0.00010958,2]
[333136234,1721885442382,-500.0,0.00010958,2]
[333136236,1721885442391,-500.0,0.00010958,2]
[333136238,1721885442401,-500.0,0.00010958,2]
[333136240,1721885442411,-500.0,0.00010958,2]
[333136242,1721885442421,-1636.4,0.00010958,2]
[333136244,1721885442430,-1636.4,0.00010958,2]
[333136246,1721885442439,-2258.71,0.00010958,2]
[333136249,1721885442448,-2258.71,0.00010958,2]
[333136252,1721885442458,-500.0,0.00010958,2]
[333136255,1721885442468,-500.0,0.00010958,2]
[333136258,1721885442478,-1420.86,0.00010958,2]
[333136261,1721885442487,-1692.87,0.00010958,2]
[333136264,1721885442497,-1692.87,0.00010958,2]
[333136267,1721885442506,-500.0,0.00010958,2]
[333136270,1721885442515,-500.0,0.00010958,2]
[333136273,1721885442525,-500.0,0.00010958,2]
[333136276,1721885442534,-500.0,0.00010958,2]
[333136279,1721885442544,-500.0,0.00010958,2]
[333136283,1721885442553,-1354.85,0.00010958,2]
[333136287,1721885442563,-1354.85,0.00010958,2]
[333136291,1721885442572,-1652.76,0.00010958,2]
[333136295,1721885442582,-500.0,0.00010958,2]
[333136299,1721885442591,-500.0,0.00010958,2]
[333136303,1721885442601,-500.0,0.00010958,2]
[333136307,1721885442611,-500.0,0.00010958,2]
[333136311,1721885442621,-2125.76,0.00010958,2]
[333136314,1721885442631,-2125.76,0.00010958,2]
[333136318,1721885442640,-1324.2,0.00010958,2]
[333136320,1721885442651,-921.17,0.00010958,2]
[333136323,1721885442660,-921.17,0.00010958,2]
[333136326,1721885442670,-1966.41,0.00010958,2]
[333136330,1721885442679,-500.0,0.00010958,2]
[333136333,1721885442689,-2143.66,0.00010958,2]
[333136335,1721885442698,-2143.66,0.00010958,2]
[333136337,1721885442707,-2728.56,0.00010958,2]
[333136339,1721885442716,-2728.56,0.00010958,2]
[333136341,1721885442726,-2611.71,0.00010958,2]
[333136343,1721885442736,-500.0,0.00010958,2]
[333136345,1721885442745,-500.0,0.00010958,2]
[333136347,1721885442755,-1006.58,0.00010958,2]
[333136349,1721885442765,-2026.97,0.00010958,2]
[333136351,1721885442774,-2026.97,0.00010958,2]
[333136353,1721885442784,-500.0,0.00010958,2]
[333136355,1721885442793,-668.37,0.00010958,2]
[333136357,1721885442803,-880.6,0.00010958,2]
[333136359,1721885442812,-880.6,0.00010958,2]
[333136361,1721885442821,-500.0,0.00010958,2]
[333136363,1721885442831,-2439.49,0.00010958,2]
[333136365,1721885442840,-2439.49,0.00010958,2]
[333136366,1721885442850,-1882.52,0.00010958,2]
[333136368,1721885442861,-1882.52,0.00010958,2]
[333136370,1721885442870,-2599.45,0.00010958,2]
[333136372,1721885442879,-2599.45,0.00010958,2]
[333136374,1721885442889,-969.33,0.00010958,2]
[333136376,1721885442898,-1670.77,0.00010958,2]
[333136378,1721885442908,-1670.77,0.00010958,2]
[333136380,1721885442918,-500.0,0.00010958,2]
[333136382,1721885442928,-699.26,0.00010958,2]
[333136384,1721885442938,-699.26,0.00010958,2]
[333136385,1721885442948,-1797.59,0.00010958,2]
[333136387,1721885442957,-1797.59,0.00010958,2]
[333136389,1721885442967,-534.76,0.00010958,2]
[333136391,1721885442976,-688.02,0.00010958,2]
[333136393,1721885442986,-1061.78,0.00010958,2]
[333136395,1721885442996,-1061.78,0.00010958,2]
[333136397,1721885443006,-500.0,0.00010958,2]
[333136399,1721885443016,-500.0,0.00010958,2]
[333136401,1721885443027,-1343.67,0.00010958,2]
[333136403,1721885443037,-1343.67,0.00010958,2]
[333136405,1721885443046,-2247.13,0.00010958,2]
[333136406,1721885443055,-638.42,0.00010958,2]
[333136408,1721885443065,-638.42,0.00010958,2]
[333136410,1721885443074,-500.0,0.00010958,2]
[333136412,1721885443084,-500.0,0.00010958,2]
[333136414,1721885443093,-500.0,0.00010958,2]
[333136416,1721885443103,-1664.94,0.00010958,2]
[333136418,1721885443112,-1664.94,0.00010958,2]
[333136420,1721885443122,-1719.34,0.00010958,2]
[333136422,1721885443131,-1719.34,0.00010958,2]
[333136424,1721885443145,-1193.95,0.00010958,2]
[333136426,1721885443155,-1280.51,0.00010958,2]
[333136428,1721885443164,-1280.51,0.00010958,2]
[333136429,1721885443174,-150.0,0.00010958,2]
[333136431,1721885443183,-2311.2,0.00010958,2]
[333136433,1721885443193,-1871.19,0.00010958,2]
[333136435,1721885443202,-1871.19,0.00010958,2]
[333136437,1721885443212,-500.0,0.00010958,2]
[333136439,1721885443223,-500.0,0.00010958,2]
[333136457,1721885443391,-1744.71,0.00010958,2]
[333136459,1721885443403,-851.07,0.00010958,2]
[333136461,1721885443412,-851.07,0.00010958,2]
[333136463,1721885443422,-1056.95,0.00010958,2]
[333136465,1721885443431,-2620.83,0.00010958,2]
[333136467,1721885443440,-2620.83,0.00010958,2]
[333136469,1721885443450,-2002.0,0.00010958,2]
[333136471,1721885443460,-3217.72,0.00010958,2]
[333136472,1721885443469,-2599.98,0.00010958,2]
[333136474,1721885443479,-500.0,0.00010958,2]
[333136476,1721885443488,-500.0,0.00010958,2]
[333136478,1721885443498,-1183.24,0.00010958,2]
[333136480,1721885443508,-1183.24,0.00010958,2]
[333136482,1721885443517,-737.03,0.00010958,2]
[333136484,1721885443529,-1635.76,0.00010958,2]
[333136486,1721885443538,-1635.76,0.00010958,2]
[333136488,1721885443547,-1295.55,0.00010958,2]
[333136490,1721885443557,-1281.79,0.00010958,2]
[333136492,1721885443566,-500.0,0.00010958,2]
[333136493,1721885443576,-500.0,0.00010958,2]
[333136495,1721885443585,-4119.7,0.00010958,2]
[333136497,1721885443594,-4119.7,0.00010958,2]
[333136499,1721885443606,-1235.77,0.00010958,2]
[333136501,1721885443616,-1235.77,0.00010958,2]
[333136503,1721885443625,-1305.84,0.00010958,2]
[333136505,1721885443635,-1305.84,0.00010958,2]
[333136507,1721885443648,-877.42,0.00010958,2]
[333136509,1721885443658,-2740.55,0.00010958,2]
[333136511,1721885443668,-556.54,0.00010958,2]
[333136513,1721885443678,-556.54,0.00010958,2]
[333136515,1721885443688,-714.11,0.00010958,2]
[333136517,1721885443698,-714.11,0.00010958,2]
[333136519,1721885443707,-2586.8,0.00010958,2]
[333136521,1721885443716,-1701.25,0.00010958,2]
[333136523,1721885443726,-1701.25,0.00010958,2]
[333136525,1721885443736,-500.0,0.00010958,2]
[333136527,1721885443745,-596.9,0.00010958,2]
[333136529,1721885443754,-500.0,0.00010958,2]
[333136531,1721885443764,-500.0,0.00010958,2]
[333136533,1721885443773,-500.0,0.00010958,2]
[333136534,1721885443783,-500.0,0.00010958,2]
[333136536,1721885443793,-2838.84,0.00010958,2]
[333136538,1721885443802,-606.19142198,0.00010958,2]
[333136540,1721885443812,-500.0,0.00010958,2]
[333136542,1721885443821,-500.0,0.00010958,2]
[333136544,1721885443831,-2911.86,0.00010958,2]
[333136546,1721885443840,-500.0,0.00010958,2]
[333136548,1721885443849,-500.0,0.00010958,2]
[333136550,1721885443863,-9011.92,0.00010958,2]
[333136552,1721885443872,-728.32,0.00010958,2]
[333136554,1721885443882,-500.0,0.00010958,2]
[333136556,1721885443892,-500.0,0.00010958,2]
[333136557,1721885443901,-3215.54,0.00010958,2]
[333136559,1721885443911,-500.0,0.00010958,2]
[333136561,1721885443920,-8931.09,0.00010958,2]
[333136563,1721885443930,-8931.09,0.00010958,2]
[333136565,1721885443939,-1264.57,0.00010958,2]
[333136567,1721885443949,-1264.57,0.00010958,2]
[333136569,1721885443958,-4180.16,0.00010958,2]
[333136571,1721885443968,-2028.08,0.00010958,2]
[333136573,1721885443978,-2028.08,0.00010958,2]
[333136575,1721885443988,-1973.51,0.00010958,2]
[333136577,1721885443997,-1973.51,0.00010958,2]
[333136578,1721885444007,-2765.39,0.00010958,2]
[333136580,1721885444017,-2765.39,0.00010958,2]
[333136582,1721885444027,-2391.14,0.00010958,2]
[333136584,1721885444037,-1817.83,0.00010958,2]
[333136586,1721885444047,-1817.83,0.00010958,2]
[333136587,1721885444057,-1598.01,0.00010958,2]
[333136588,1721885444066,-2223.77,0.00010958,2]
[333136589,1721885444076,-2223.77,0.00010958,2]
[333136590,1721885444085,-4013.21,0.00010958,2]
[333136591,1721885444095,-3137.44,0.00010958,2]
[333136592,1721885444106,-3137.44,0.00010958,2]
[333136593,1721885444115,-3134.13,0.00010958,2]
[333136594,1721885444125,-500.0,0.00010958,2]
[333136595,1721885444135,-596.49230859,0.00010958,2]
[333136596,1721885444145,-4489.28,0.00010958,2]
[333136597,1721885444155,-2613.84,0.00010958,2]
[333136598,1721885444164,-2613.84,0.00010958,2]
[333136599,1721885444173,-1311.42,0.00010958,2]
[333136600,1721885444183,-1311.42,0.00010958,2]
[333136601,1721885444193,-500.0,0.00010958,2]
[333136602,1721885444202,-500.0,0.00010958,2]
[333136603,1721885444211,-500.0,0.00010958,2]
[333136604,1721885444221,-2470.82,0.00010958,2]
[333136605,1721885444231,-2423.63,0.00010958,2]
[333136606,1721885444241,-2672.56,0.00010958,2]
[333136607,1721885444250,-2672.56,0.00010958,2]
[333136608,1721885444259,-500.0,0.00010958,2]
[333136609,1721885444269,-500.83,0.00010958,2]
[333136610,1721885444278,-500.0,0.00010958,2]
[333136611,1721885444287,-500.83,0.00010958,2]
[333136613,1721885444297,-500.0,0.00010958,2]
[333136614,1721885444306,-500.0,0.00010958,2]
[333136616,1721885444316,-1645.65,0.00010958,2]
[333136618,1721885444326,-1645.65,0.00010958,2]
[333136620,1721885444335,-1730.11,0.00010958,2]
[333136622,1721885444344,-1730.11,0.00010958,2]
[333136624,1721885444354,-250.0,0.00010959,2]
[333136626,1721885444364,-150.0,0.00010963,2]
[333136628,1721885444374,-150.0,0.00010963,2]
[333136630,1721885444383,-2470.82,0.00010963,2]
[333136632,1721885444393,-1073.0,0.00010964,2]
[333136634,1721885444402,-150.0,0.00010965,2]
[333136636,1721885444412,-306.32793202,0.0001097,2]
[333136638,1721885444421,-229.19407662,0.0001097,2]
[333136639,1721885444431,-1311.42,0.00010978,2]
[333136640,1721885444440,-500.0,0.00010978,2]
[333136641,1721885444450,-500.83,0.00010978,2]
[333136643,1721885444460,-500.0,0.00010979,2]
[333136645,1721885444471,-500.0,0.00010979,2]
[333136647,1721885444481,-1257.18,0.00010979,2]
[333136649,1721885444490,-500.0,0.00010979,2]
[333136651,1721885444500,-1537.43,0.00010979,2]
[333136653,1721885444510,-1783.31,0.00010979,2]
[333136655,1721885444519,-1145.49,0.00010979,2]
[333136657,1721885444529,-500.0,0.00010979,2]
[333136658,1721885444539,-1293.54,0.00010979,2]
[333136660,1721885444548,-500.0,0.00010979,2]
[333136662,1721885444558,-980.84,0.00010979,2]
[333136664,1721885444567,-628.53,0.00010979,2]
[333136666,1721885444577,-1142.86,0.00010979,2]
[333136668,1721885444586,-1625.85,0.00010979,2]
[333136670,1721885444596,-979.54,0.00010979,2]
[333136672,1721885444606,-1583.32,0.00010979,2]
[333136674,1721885444616,-500.0,0.00010979,2]
[333136676,1721885444626,-1317.73,0.00010979,2]
[333136678,1721885444635,-1188.5,0.00010979,2]
[333136680,1721885444645,-3361.54,0.00010979,2]
[333136682,1721885444654,-3394.4,0.00010979,2]
[333136683,1721885444663,-2587.03,0.00010979,2]
[333136686,1721885444675,-3159.19,0.00010979,2]
[333136687,1721885444685,-1196.49,0.00010979,2]
[333136690,1721885444695,-500.0,0.00010979,2]
[333136691,1721885444704,-1496.03,0.00010979,2]
[333136693,1721885444714,-1166.32,0.00010979,2]
[333136695,1721885444724,-2120.38,0.00010979,2]
[333136696,1721885444734,-2140.44,0.00010979,2]
[333136697,1721885444743,-2521.29,0.00010979,2]
[333136698,1721885444753,-1737.09,0.00010979,2]
[333136699,1721885444763,-500.0,0.00010979,2]
[333136700,1721885444772,-500.0,0.00010979,2]
[333136701,1721885444782,-500.0,0.00010979,2]
[333136702,1721885444791,-1636.4,0.00010979,2]
[333136703,1721885444801,-2258.71,0.00010979,2]
[333136704,1721885444810,-1692.87,0.00010979,2]
[333136705,1721885444820,-1354.85,0.00010979,2]
[333136706,1721885444829,-500.0,0.00010979,2]
[333136707,1721885444839,-2125.76,0.00010979,2]
[333136708,1721885444850,-921.17,0.00010979,2]
[333136709,1721885444859,-2143.66,0.00010979,2]
[333136710,1721885444869,-2728.56,0.00010979,2]
[333136711,1721885444879,-500.0,0.00010979,2]
[333136712,1721885444888,-2026.97,0.00010979,2]
[333136713,1721885444898,-880.6,0.00010979,2]
[333136714,1721885444907,-2439.49,0.00010979,2]
[333136715,1721885444916,-1882.52,0.00010979,2]
[333136716,1721885444926,-2599.45,0.00010979,2]
[333136717,1721885444935,-1670.77,0.00010979,2]
[333136718,1721885444945,-699.26,0.00010979,2]
[333136719,1721885444954,-1797.59,0.00010979,2]
[333136720,1721885444963,-1061.78,0.00010979,2]
[333136721,1721885444973,-1343.67,0.00010979,2]
[333136722,1721885444982,-638.42,0.00010979,2]
[333136723,1721885444991,-500.0,0.00010979,2]
[333136724,1721885445000,-1664.94,0.00010979,2]
[333136725,1721885445010,-1719.34,0.00010979,2]
[333136726,1721885445019,-1280.51,0.00010979,2]
[333136727,1721885445030,-1871.19,0.00010979,2]
[333136728,1721885445039,-500.0,0.00010979,2]
[333136729,1721885445049,-851.07,0.00010979,2]
[333136730,1721885445059,-2620.83,0.00010979,2]
[333136731,1721885445068,-500.0,0.00010979,2]
[333136732,1721885445079,-1183.24,0.00010979,2]
[333136733,1721885445088,-1635.76,0.00010979,2]
[333136734,1721885445098,-500.0,0.00010979,2]
[333136735,1721885445108,-4119.7,0.00010979,2]
[333136736,1721885445117,-1235.77,0.00010979,2]
[333136737,1721885445127,-1305.84,0.00010979,2]
[333136738,1721885445137,-877.42,0.00010979,2]
[333136739,1721885445151,-877.42,0.00010979,2]
[333136740,1721885445161,-877.42,0.00010979,2]
[333136741,1721885445171,-877.42,0.00010979,2]
[333136742,1721885445181,-556.54,0.00010979,2]
[333136743,1721885445190,-714.11,0.00010979,2]
[333136744,1721885445200,-2586.8,0.00010979,2]
[333136745,1721885445209,-2586.8,0.00010979,2]
[333136747,1721885445220,-2586.8,0.00010979,2]
[333136749,1721885445231,-2586.8,0.00010979,2]
[333136751,1721885445243,-1701.25,0.00010979,2]
[333136753,1721885445253,-596.9,0.00010979,2]
[333136755,1721885445263,-596.9,0.00010979,2]
[333136758,1721885445276,-596.9,0.00010979,2]
[333136761,1721885445285,-596.9,0.00010979,2]
[333136763,1721885445296,-500.0,0.00010979,2]
[333136766,1721885445306,-307.73466417,0.00010979,2]
[333136768,1721885445316,-500.0,0.00010979,2]
[333136770,1721885445326,-500.0,0.00010979,2]
[333136772,1721885445335,-500.0,0.00010979,2]
[333136774,1721885445346,-500.0,0.00010979,2]
[333136776,1721885445356,-500.0,0.00010979,2]
[333136778,1721885445367,-593.97980604,0.00010979,2]
[333136780,1721885445377,-9011.92,0.00010979,2]
[333136782,1721885445386,-9011.92,0.00010979,2]
[333136784,1721885445395,-9011.92,0.00010979,2]
[333136786,1721885445404,-9011.92,0.00010979,2]
[333136788,1721885445413,-8931.09,0.00010979,2]
[333136790,1721885445422,-8931.09,0.00010979,2]
[333136792,1721885445431,-8931.09,0.00010979,2]
[333136794,1721885445440,-8931.09,0.00010979,2]
[333136796,1721885445451,-1264.57,0.00010979,2]
[333136798,1721885445460,-4180.16,0.00010979,2]
[333136800,1721885445469,-4180.16,0.00010979,2]
[333136802,1721885445479,-4180.16,0.00010979,2]
[333136804,1721885445489,-4180.16,0.00010979,2]
[333136806,1721885445498,-2028.08,0.00010979,2]
[333136808,1721885445508,-2028.08,0.00010979,2]
[333136810,1721885445518,-2028.08,0.00010979,2]
[333136812,1721885445527,-2028.08,0.00010979,2]
[333136813,1721885445537,-1973.51,0.00010979,2]
[333136815,1721885445546,-2765.39,0.00010979,2]
[333136817,1721885445556,-2391.14,0.00010979,2]
[333136819,1721885445565,-2391.14,0.00010979,2]
[333136821,1721885445576,-2391.14,0.00010979,2]
[333136823,1721885445585,-2391.14,0.00010979,2]
[333136825,1721885445594,-1817.83,0.00010979,2]
[333136827,1721885445604,-1598.01,0.00010979,2]
[333136829,1721885445615,-1598.01,0.00010979,2]
[333136831,1721885445624,-1598.01,0.00010979,2]
[333136833,1721885445633,-1598.01,0.00010979,2]
[333136835,1721885445642,-2223.77,0.00010979,2]
[333136836,1721885445651,-4013.21,0.00010979,2]
[333136837,1721885445661,-4013.21,0.00010979,2]
[333136838,1721885445670,-4013.21,0.00010979,2]
[333136839,1721885445680,-4013.21,0.00010979,2]
[333136840,1721885445690,-3137.44,0.00010979,2]
[333136841,1721885445700,-3134.13,0.00010979,2]
[333136842,1721885445709,-3134.13,0.00010979,2]
[333136843,1721885445718,-3134.13,0.00010979,2]
[333136844,1721885445728,-3134.13,0.00010979,2]
[333136845,1721885445737,-4489.28,0.00010979,2]
[333136846,1721885445747,-4489.28,0.00010979,2]
[333136847,1721885445756,-4489.28,0.00010979,2]
[333136848,1721885445766,-4489.28,0.00010979,2]
[333136849,1721885445775,-2613.84,0.00010979,2]
[333136850,1721885445785,-2613.84,0.00010979,2]
[333136851,1721885445794,-2613.84,0.00010979,2]
[333136852,1721885445806,-2613.84,0.00010979,2]
[333136853,1721885445815,-1311.42,0.00010979,2]
[333136854,1721885445825,-1311.42,0.00010979,2]
[333136855,1721885445834,-1311.42,0.00010979,2]
[333136856,1721885445844,-1311.42,0.00010979,2]
[333136857,1721885445853,-500.0,0.00010979,2]
[333136858,1721885445865,-500.0,0.00010979,2]
[333136859,1721885445875,-2423.63,0.00010979,2]
[333136860,1721885445884,-500.0,0.00010979,2]
[333136861,1721885445894,-2423.63,0.00010979,2]
[333136862,1721885445905,-500.0,0.00010979,2]
[333136863,1721885445916,-2470.82,0.00010979,2]
[333136864,1721885445927,-2423.63,0.00010979,2]
[333136865,1721885445936,-2672.56,0.00010979,2]
[333136866,1721885445948,-2470.82,0.00010979,2]
[333136867,1721885445958,-2423.63,0.00010979,2]
[333136868,1721885445968,-2470.82,0.00010979,2]
[333136869,1721885445977,-500.0,0.00010979,2]
[333136870,1721885445988,-500.83,0.00010979,2]
[333136871,1721885445998,-500.0,0.00010979,2]
[333136872,1721885446008,-500.83,0.00010979,2]
[333136873,1721885446018,-500.83,0.00010979,2]
[333136874,1721885446029,-500.83,0.00010979,2]
[333136875,1721885446040,-500.0,0.00010979,2]
[333136876,1721885446049,-500.0,0.00010979,2]
[333136877,1721885446059,-500.0,0.00010979,2]
[333136878,1721885446071,-406.02074662,0.00010979,2]
[333136879,1721885446083,-2470.82,0.00010979,2]
[333136880,1721885446092,-1645.65,0.00010979,2]
[333136881,1721885446101,-1645.65,0.00010979,2]
[333136883,1721885446110,-1645.65,0.00010979,2]
[333136884,1721885446120,-1645.65,0.00010979,2]
[333136887,1721885446129,-572.0,0.0001098,2]
[333136890,1721885446139,-825848.08537523,0.0001098,5]
[333136893,1721885446151,-150.0,0.0001098,2]
[333136896,1721885446161,-151.0,0.0001098,2]
[333136898,1721885446170,-150.0,0.00010983,2]
[333136900,1721885446180,-150.0,0.00010984,2]
[333136902,1721885446190,-746.85,0.0001099,2]
[333136904,1721885446200,-500.0,0.0001099,2]
[333136907,1721885446210,-500.0,0.0001099,2]
[333136910,1721885446221,-500.0,0.0001099,2]
[333136913,1721885446231,-500.0,0.0001099,2]
[333136916,1721885446241,-500.0,0.0001099,2]
[333136919,1721885446250,-1241.35,0.0001099,2]
[333136922,1721885446260,-500.0,0.0001099,2]
[333136924,1721885446269,-1358.21,0.0001099,2]
[333136925,1721885446280,-500.0,0.0001099,2]
[333136932,1721885446421,-500.0,0.0001099,2]
[333136933,1721885446446,-500.0,0.0001099,2]
[333136934,1721885446455,-500.0,0.0001099,2]
[333136935,1721885446465,-500.0,0.0001099,2]
[333136936,1721885446474,-506.07228239,0.0001099,2]
[333136938,1721885446483,-500.0,0.0001099,2]
[333136939,1721885446492,-500.0,0.0001099,2]
[333136940,1721885446502,-660.6,0.0001099,2]
[333136941,1721885446511,-500.0,0.0001099,2]
[333136942,1721885446521,-500.0,0.0001099,2]
[333136943,1721885446532,-506.42,0.0001099,2]
[333136944,1721885446542,-500.0,0.0001099,2]
[333136946,1721885446553,-500.0,0.0001099,2]
[333136947,1721885446562,-972.39,0.0001099,2]
[333136948,1721885446572,-500.0,0.0001099,2]
[333136949,1721885446581,-504.99904593,0.0001099,2]
[333136950,1721885446590,-500.0,0.0001099,2]
[333136951,1721885446600,-500.0,0.0001099,2]
[333136952,1721885446609,-500.0,0.0001099,2]
[333136953,1721885446618,-500.0,0.0001099,2]
[333136954,1721885446627,-500.0,0.0001099,2]